[Event "FIDE Womens Grand Swiss 2021"]
[Site "Riga"]
[Date "2021.11.05"]
[Round "9.10"]
[White "Vaishali R"]
[Black "Cramling, Pia"]
[Result "1/2-1/2"]
[ECO "B31"]
[WhiteElo "2419"]
[BlackElo "2447"]
[Annotator "NA"]
[PlyCount "85"]
[EventDate "2021.10.27"]
[EventType "swiss"]
[EventCountry "LAT"]
[Tiebreak "Cut1 Buchholz+Sonneborn-Berger (Swiss)"]
[SourceTitle "playchess.com"]
[Source "ChessBase"]
[SourceQuality "1"]
[TimeControl "40/6000+30:20/3000+30:900+30"]

1. e4 {[%emt 0:13:11]} c5 {[%emt 0:10:17]} 2. Nf3 {[%emt 0:00:19]} Nc6 {
[%emt 0:00:13]} 3. Bb5 {[%emt 0:00:32]} g6 {[%emt 0:00:11]} 4. O-O {[%emt 0:00:
10]} Bg7 {[%emt 0:00:09]} 5. c3 {[%emt 0:00:19]} Nf6 {[%emt 0:01:16]} 6. Re1 {
[%emt 0:04:02]} a6 {[%emt 0:00:54]} 7. Bxc6 {[%emt 0:04:35]} dxc6 {[%emt 0:00:
11]} 8. d4 {[%emt 0:02:03]} cxd4 {[%emt 0:02:42]} 9. cxd4 {[%emt 0:00:03]} Bg4
{[%emt 0:01:02]} 10. Nbd2 {[%emt 0:04:26]} e5 {[%emt 0:16:23]} 11. dxe5 {
[%emt 0:09:02]} Nd7 {[%emt 0:01:59]} 12. Nc4 {[%emt 0:18:11]} O-O {[%emt 0:01:
33]} 13. Bf4 {[%emt 0:13:11]} b5 {[%emt 0:09:51]} 14. Ne3 {[%emt 0:01:30]} Bxf3
{[%emt 0:03:56]} 15. Qxf3 {[%emt 0:00:05]} Nxe5 {[%emt 0:01:21]} 16. Bxe5 {
[%emt 0:02:46]} Bxe5 {[%emt 0:00:08]} 17. Rac1 {[%emt 0:00:21]} Rc8 {[%emt 0:
03:05]} 18. Re2 {[%emt 0:03:26]} Qd7 {[%emt 0:22:31]} 19. Ng4 {[%emt 0:04:38]}
Rfe8 {[%emt 0:01:06]} 20. Nxe5 {[%emt 0:03:54]} Rxe5 {[%emt 0:00:05]} 21. Qa3 {
[%emt 0:00:27]} Rce8 {[%emt 0:03:26]} 22. Qxa6 {[%emt 0:06:13]} Rxe4 {[%emt 0:
00:19]} 23. Rxe4 {[%emt 0:00:04]} Rxe4 {[%emt 0:00:07]} 24. h3 {[%emt 0:00:13]}
Qd6 {[%emt 0:05:26]} 25. g3 {[%emt 0:04:04]} Qd5 {[%emt 0:01:45]} 26. Qa8+ {
[%emt 0:03:26]} Kg7 {[%emt 0:00:13]} 27. Qa5 {[%emt 0:00:36]} h5 {[%emt 0:09:
22]} 28. h4 {[%emt 0:03:58]} Re2 {[%emt 0:01:44]} 29. b3 {[%emt 0:02:15]} Kh7 {
[%emt 0:02:29]} 30. Qc3 {[%emt 0:06:11]} Rd2 {[%emt 0:03:41]} 31. Qf6 {[%emt 0:
00:43]} c5 {[%emt 0:03:19]} 32. a4 {[%emt 0:01:00]} bxa4 {[%emt 0:01:06]} 33.
bxa4 {[%emt 0:00:02]} c4 {[%emt 0:00:22]} 34. a5 {[%emt 0:00:42]} Rd3 {[%emt 0:
00:56]} 35. a6 {[%emt 0:00:45]} c3 {[%emt 0:01:51]} 36. a7 {[%emt 0:00:30]} c2
{[%emt 0:02:22]} 37. a8=Q {[%emt 0:00:13]} Rd1+ {[%emt 0:00:35]} 38. Kh2 {
[%emt 0:00:03]} Qxa8 {[%emt 0:00:15]} 39. Qxf7+ {[%emt 0:00:02]} Kh6 {[%emt 0:
00:46]} 40. Qf4+ {[%emt 0:00:03]} Kh7 {[%emt 0:00:37]} 41. Qf7+ {[%emt 0:50:10]
} Kh6 {[%emt 0:50:42]} 42. Qf4+ {[%emt 0:00:00]} Kh7 {[%emt 0:00:00]} 43. Qf7+
{[%emt 0:00:00]} 1/2-1/2

[Event "FIDE Womens Grand Swiss 2021"]
[Site "Riga"]
[Date "2021.11.05"]
[Round "9.11"]
[White "Munguntuul, Batkhuyag"]
[Black "Buksa, Nataliya"]
[Result "1-0"]
[ECO "C77"]
[WhiteElo "2433"]
[BlackElo "2409"]
[Annotator "NA"]
[PlyCount "97"]
[EventDate "2021.10.27"]
[EventType "swiss"]
[EventCountry "LAT"]
[Tiebreak "Cut1 Buchholz+Sonneborn-Berger (Swiss)"]
[SourceTitle "playchess.com"]
[Source "ChessBase"]
[SourceQuality "1"]
[TimeControl "40/6000+30:20/3000+30:900+30"]

1. e4 {[%emt 0:10:03]} e5 {[%emt 0:11:44]} 2. Nf3 {[%emt 0:00:06]} Nc6 {
[%emt 0:00:04]} 3. Bb5 {[%emt 0:00:06]} a6 {[%emt 0:00:04]} 4. Ba4 {[%emt 0:00:
05]} Nf6 {[%emt 0:00:05]} 5. d3 {[%emt 0:00:13]} d6 {[%emt 0:00:25]} 6. c3 {
[%emt 0:08:59]} g6 {[%emt 0:00:05]} 7. O-O {[%emt 0:00:19]} Bg7 {[%emt 0:00:02]
} 8. Nbd2 {[%emt 0:00:20]} O-O {[%emt 0:00:05]} 9. Re1 {[%emt 0:00:28]} Re8 {
[%emt 0:00:58]} 10. d4 {[%emt 0:06:09]} b5 {[%emt 0:00:53]} 11. Bc2 {[%emt 0:
04:25]} exd4 {[%emt 0:01:22]} 12. cxd4 {[%emt 0:00:05]} Nb4 {[%emt 0:00:12]}
13. Bb1 {[%emt 0:01:27]} c5 {[%emt 0:04:19]} 14. a3 {[%emt 0:13:07]} Nc6 {
[%emt 0:00:14]} 15. d5 {[%emt 0:00:08]} Ne5 {[%emt 0:21:22]} 16. Nxe5 {[%emt 0:
00:45]} Rxe5 {[%emt 0:00:03]} 17. Bc2 {[%emt 0:07:45]} Re8 {[%emt 0:09:17]} 18.
a4 {[%emt 0:13:09]} Rb8 {[%emt 0:04:02]} 19. h3 {[%emt 0:05:33]} Rb7 {[%emt 0:
02:26]} 20. axb5 {[%emt 0:08:27]} axb5 {[%emt 0:00:06]} 21. Nb3 {[%emt 0:00:26]
} Qb6 {[%emt 0:09:55]} 22. Ra8 {[%emt 0:11:38]} Rbe7 {[%emt 0:11:20]} 23. Bg5 {
[%emt 0:04:01]} h6 {[%emt 0:03:58]} 24. Bh4 {[%emt 0:00:12]} Bb7 {[%emt 0:05:
23]} 25. Rxe8+ {[%emt 0:00:16]} Rxe8 {[%emt 0:00:02]} 26. Nd2 {[%emt 0:03:15]}
Nd7 {[%emt 0:01:18]} 27. b3 {[%emt 0:02:45]} Ra8 {[%emt 0:00:11]} 28. Bb1 {
[%emt 0:01:35]} Qa5 {[%emt 0:03:50]} 29. Bg3 {[%emt 0:00:50]} Qa6 {[%emt 0:00:
23]} 30. Qe2 {[%emt 0:01:05]} Qb6 {[%emt 0:01:27]} 31. Kh2 {[%emt 0:00:24]} Ba6
{[%emt 0:02:22]} 32. f4 {[%emt 0:00:45]} Re8 {[%emt 0:01:15]} 33. Bd3 {[%emt 0:
02:46]} Qa5 {[%emt 0:03:52]} 34. Nf3 {[%emt 0:00:54]} Nf6 {[%emt 0:01:21]} 35.
Qf2 {[%emt 0:00:47]} c4 {[%emt 0:02:11]} 36. bxc4 {[%emt 0:00:10]} bxc4 {
[%emt 0:00:03]} 37. Bc2 {[%emt 0:00:09]} Nh5 {[%emt 0:00:12]} 38. f5 {[%emt 0:
03:37]} Nxg3 {[%emt 0:09:23]} 39. fxg6 {[%emt 0:00:02]} Nf1+ {[%emt 0:03:13]}
40. Rxf1 {[%emt 0:00:11]} fxg6 {[%emt 0:00:03]} 41. Qg3 {[%emt 0:51:35]} Qc7 {
[%emt 0:35:06]} 42. Qxg6 {[%emt 0:00:00]} Qf7 {[%emt 0:00:05]} 43. Qxd6 {
[%emt 0:00:00]} Be5+ {[%emt 0:06:02]} 44. Nxe5 {[%emt 0:00:00]} Qxf1 {[%emt 0:
00:02]} 45. Qg6+ {[%emt 0:00:00]} Kf8 {[%emt 0:00:02]} 46. Qxh6+ {[%emt 0:00:
00]} Kg8 {[%emt 0:00:21]} 47. Qg5+ {[%emt 0:00:00]} Kf8 {[%emt 0:00:34]} 48.
Nd7+ {[%emt 0:00:00]} Kf7 {[%emt 0:00:03]} 49. e5 {[%emt 0:00:00]} 1-0

[Event "FIDE Womens Grand Swiss 2021"]
[Site "Riga"]
[Date "2021.11.05"]
[Round "9.15"]
[White "Abdumalik, Zhansaya"]
[Black "Melia, Salome"]
[Result "1/2-1/2"]
[ECO "B10"]
[WhiteElo "2507"]
[BlackElo "2371"]
[Annotator "ChessBase"]
[PlyCount "63"]
[EventDate "2021.10.27"]
[EventType "swiss"]
[EventCountry "LAT"]
[Tiebreak "Cut1 Buchholz+Sonneborn-Berger (Swiss)"]
[SourceTitle "playchess.com"]
[Source "ChessBase"]
[SourceQuality "1"]
[TimeControl "40/6000+30:20/3000+30:900+30"]

1. e4 {[%emt 0:10:03]} c6 {[%emt 0:10:02]} 2. Nf3 {[%emt 0:01:01]} d5 {[%emt 0:
00:19]} 3. d3 {[%emt 0:00:05]} dxe4 {[%emt 0:00:21]} 4. dxe4 {[%emt 0:00:06]}
Qxd1+ {[%emt 0:00:08]} 5. Kxd1 {[%emt 0:00:04]} Nf6 {[%emt 0:00:23]} 6. Nfd2 {
[%emt 0:01:09]} g5 {[%emt 0:00:12]} 7. f3 {[%emt 0:03:49]} h5 {[%emt 0:03:23]}
8. h4 {[%emt 0:09:33]} g4 {[%emt 0:00:51]} 9. Nc3 {[%emt 0:00:51]} Bh6 {
[%emt 0:05:35]} 10. a4 {[%emt 0:01:58]} Be6 {[%emt 0:09:38]} 11. Ne2 {[%emt 0:
11:29]} gxf3 {[%emt 0:03:14]} 12. gxf3 {[%emt 0:02:08]} Nbd7 {[%emt 0:00:31]}
13. Nd4 {[%emt 0:05:07]} Ne5 {[%emt 0:11:19]} 14. Nxe6 {[%emt 0:10:00]} fxe6 {
[%emt 0:00:55]} 15. Ke2 {[%emt 0:00:09]} Nfd7 {[%emt 0:08:08]} 16. Bh3 {
[%emt 0:08:10]} Ng6 {[%emt 0:11:46]} 17. Nb3 {[%emt 0:01:03]} Bxc1 {[%emt 0:01:
05]} 18. Raxc1 {[%emt 0:04:50]} Rf8 {[%emt 0:09:24]} 19. Nd4 {[%emt 0:08:29]}
Rf6 {[%emt 0:00:54]} 20. Rcg1 {[%emt 0:06:25]} Ndf8 {[%emt 0:02:48]} 21. Rg5 {
[%emt 0:02:09]} Nf4+ {[%emt 0:07:26]} 22. Ke3 {[%emt 0:02:30]} Rd8 {[%emt 0:00:
09]} 23. Bf1 {[%emt 0:06:31]} N8g6 {[%emt 0:09:04]} 24. e5 {[%emt 0:02:23]} Rf8
{[%emt 0:01:48]} 25. Nxe6 {[%emt 0:05:11]} Nxe6 {[%emt 0:00:44]} 26. Rxg6 {
[%emt 0:00:04]} Nd4 {[%emt 0:02:48]} 27. Bd3 {[%emt 0:01:55]} Nxf3 {[%emt 0:01:
59]} 28. e6 {[%emt 0:00:56]} Ne5 {[%emt 0:03:54]} 29. Rg5 {[%emt 0:05:11]} Nxd3
{[%emt 0:00:18]} 30. cxd3 {[%emt 0:00:05]} Rd6 {[%emt 0:00:27]} 31. Re5 {
[%emt 0:02:02]} Rf6 {[%emt 0:01:01]} 32. Rxh5 {[%emt 0:00:21]} 1/2-1/2

[Event "FIDE Womens Grand Swiss 2021"]
[Site "Riga"]
[Date "2021.11.05"]
[Round "9.17"]
[White "Sargsyan, Anna M."]
[Black "Cyfka, Karina"]
[Result "1/2-1/2"]
[ECO "C47"]
[WhiteElo "2402"]
[BlackElo "2409"]
[Annotator "NA"]
[PlyCount "68"]
[EventDate "2021.10.27"]
[EventType "swiss"]
[EventCountry "LAT"]
[Tiebreak "Cut1 Buchholz+Sonneborn-Berger (Swiss)"]
[SourceTitle "playchess.com"]
[Source "ChessBase"]
[SourceQuality "1"]
[TimeControl "40/6000+30:20/3000+30:900+30"]

1. e4 {[%emt 0:10:09]} e5 {[%emt 0:10:07]} 2. Nf3 {[%emt 0:00:09]} Nf6 {
[%emt 0:00:05]} 3. Nc3 {[%emt 0:01:57]} Nc6 {[%emt 0:00:05]} 4. d4 {[%emt 0:01:
17]} exd4 {[%emt 0:01:16]} 5. Nxd4 {[%emt 0:00:11]} Bb4 {[%emt 0:00:09]} 6.
Nxc6 {[%emt 0:00:08]} bxc6 {[%emt 0:00:06]} 7. Bd3 {[%emt 0:00:06]} d5 {
[%emt 0:00:58]} 8. exd5 {[%emt 0:00:08]} O-O {[%emt 0:00:15]} 9. O-O {[%emt 0:
00:06]} Bg4 {[%emt 0:01:19]} 10. Be2 {[%emt 0:02:46]} Bxe2 {[%emt 0:01:00]} 11.
Nxe2 {[%emt 0:00:08]} cxd5 {[%emt 0:00:22]} 12. Nd4 {[%emt 0:00:08]} Qd7 {
[%emt 0:06:02]} 13. Qf3 {[%emt 0:01:56]} Rfe8 {[%emt 0:06:04]} 14. Be3 {
[%emt 0:14:34]} Bf8 {[%emt 0:16:39]} 15. Rad1 {[%emt 0:01:59]} c6 {[%emt 0:06:
29]} 16. h3 {[%emt 0:15:33]} Rac8 {[%emt 0:03:31]} 17. Nf5 {[%emt 0:01:37]} Qe6
{[%emt 0:08:54]} 18. Bd4 {[%emt 0:03:58]} Ne4 {[%emt 0:03:42]} 19. c4 {[%emt 0:
02:35]} g6 {[%emt 0:15:59]} 20. Ng3 {[%emt 0:08:49]} f5 {[%emt 0:02:16]} 21.
cxd5 {[%emt 0:02:06]} cxd5 {[%emt 0:02:36]} 22. Bxa7 {[%emt 0:00:26]} Ra8 {
[%emt 0:01:41]} 23. Bd4 {[%emt 0:00:16]} Rxa2 {[%emt 0:01:05]} 24. Ne2 {
[%emt 0:00:18]} Raa8 {[%emt 0:02:49]} 25. Nf4 {[%emt 0:02:20]} Qf7 {[%emt 0:01:
43]} 26. Bb6 {[%emt 0:05:45]} Bg7 {[%emt 0:07:13]} 27. Nxd5 {[%emt 0:03:28]}
Ra2 {[%emt 0:01:01]} 28. Rfe1 {[%emt 0:07:07]} Rxb2 {[%emt 0:00:43]} 29. Qa3 {
[%emt 0:00:21]} Rd2 {[%emt 0:06:56]} 30. Nc7 {[%emt 0:09:18]} Rxd1 {[%emt 0:00:
50]} 31. Rxd1 {[%emt 0:00:02]} Rf8 {[%emt 0:00:33]} 32. f3 {[%emt 0:02:30]} Nc3
{[%emt 0:00:43]} 33. Re1 {[%emt 0:02:24]} Nd5 {[%emt 0:01:18]} 34. Nxd5 {
[%emt 0:02:03]} Qxd5 {[%emt 0:00:05]} 1/2-1/2

[Event "FIDE Womens Grand Swiss 2021"]
[Site "Riga"]
[Date "2021.11.05"]
[Round "9.18"]
[White "Sukandar, Irine Kharisma"]
[Black "Rogule, Laura"]
[Result "1-0"]
[ECO "B23"]
[WhiteElo "2406"]
[BlackElo "2289"]
[Annotator "NA"]
[PlyCount "101"]
[EventDate "2021.10.27"]
[EventType "swiss"]
[EventCountry "LAT"]
[Tiebreak "Cut1 Buchholz+Sonneborn-Berger (Swiss)"]
[SourceTitle "playchess.com"]
[Source "ChessBase"]
[SourceQuality "1"]
[TimeControl "40/6000+30:20/3000+30:900+30"]

1. e4 {[%emt 0:10:27]} c5 {[%emt 0:10:09]} 2. Nc3 {[%emt 0:00:15]} Nc6 {
[%emt 0:00:54]} 3. Bb5 {[%emt 0:00:18]} Nd4 {[%emt 0:04:59]} 4. Nf3 {[%emt 0:
00:26]} a6 {[%emt 0:10:11]} 5. Bd3 {[%emt 0:00:31]} g6 {[%emt 0:07:09]} 6. Rb1
{[%emt 0:00:20]} Bg7 {[%emt 0:02:10]} 7. b4 {[%emt 0:00:19]} d6 {[%emt 0:12:31]
} 8. bxc5 {[%emt 0:02:43]} dxc5 {[%emt 0:02:03]} 9. Na4 {[%emt 0:01:02]} Ne6 {
[%emt 0:16:50]} 10. Nb6 {[%emt 0:01:49]} Rb8 {[%emt 0:02:15]} 11. Bc4 {[%emt 0:
02:08]} Nf6 {[%emt 0:02:36]} 12. d3 {[%emt 0:07:53]} O-O {[%emt 0:06:28]} 13.
O-O {[%emt 0:01:21]} Nh5 {[%emt 0:02:17]} 14. Be3 {[%emt 0:07:37]} Qd6 {
[%emt 0:02:51]} 15. Qd2 {[%emt 0:01:42]} Nef4 {[%emt 0:03:28]} 16. Rfe1 {
[%emt 0:05:14]} Qf6 {[%emt 0:13:46]} 17. Nxc8 {[%emt 0:13:27]} Rfxc8 {[%emt 0:
00:31]} 18. a4 {[%emt 0:01:51]} g5 {[%emt 0:01:00]} 19. g3 {[%emt 0:06:30]} h6
{[%emt 0:03:04]} 20. Qd1 {[%emt 0:02:57]} Qg6 {[%emt 0:01:26]} 21. gxf4 {
[%emt 0:04:55]} gxf4+ {[%emt 0:00:06]} 22. Kh1 {[%emt 0:00:06]} fxe3 {[%emt 0:
00:08]} 23. fxe3 {[%emt 0:00:30]} e6 {[%emt 0:02:30]} 24. Rg1 {[%emt 0:02:05]}
Qf6 {[%emt 0:00:02]} 25. Qf1 {[%emt 0:04:23]} b5 {[%emt 0:00:37]} 26. axb5 {
[%emt 0:00:44]} axb5 {[%emt 0:00:02]} 27. Rxb5 {[%emt 0:01:11]} Rxb5 {[%emt 0:
00:43]} 28. Bxb5 {[%emt 0:00:02]} c4 {[%emt 0:02:49]} 29. Bxc4 {[%emt 0:00:55]}
Rc5 {[%emt 0:00:34]} 30. Qh3 {[%emt 0:01:06]} Kf8 {[%emt 0:00:35]} 31. Rb1 {
[%emt 0:06:42]} Qd8 {[%emt 0:00:36]} 32. e5 {[%emt 0:00:51]} Qa8 {[%emt 0:00:
21]} 33. Kg1 {[%emt 0:05:48]} Bxe5 {[%emt 0:00:36]} 34. Qxh5 {[%emt 0:01:14]}
Bxh2+ {[%emt 0:00:35]} 35. Qxh2 {[%emt 0:00:07]} Qxf3 {[%emt 0:00:15]} 36. Qd6+
{[%emt 0:01:09]} Kg8 {[%emt 0:00:35]} 37. Qxc5 {[%emt 0:01:16]} Qg3+ {[%emt 0:
00:19]} 38. Kf1 {[%emt 0:00:07]} Qf3+ {[%emt 0:00:25]} 39. Ke1 {[%emt 0:00:07]}
Qh1+ {[%emt 0:00:20]} 40. Kd2 {[%emt 0:00:05]} Qxb1 {[%emt 0:00:05]} 41. Qh5 {
[%emt 0:51:42]} Kg7 {[%emt 0:50:40]} 42. Qg4+ {[%emt 0:01:06]} Kf8 {[%emt 0:00:
24]} 43. Qh4 {[%emt 0:00:44]} Kg7 {[%emt 0:00:06]} 44. Qd4+ {[%emt 0:00:21]}
Kg8 {[%emt 0:00:28]} 45. Qf6 {[%emt 0:00:54]} Qh1 {[%emt 0:00:19]} 46. d4 {
[%emt 0:01:06]} h5 {[%emt 0:00:13]} 47. Bf1 {[%emt 0:01:00]} Qh2+ {[%emt 0:00:
43]} 48. Kd3 {[%emt 0:00:15]} Qg3 {[%emt 0:00:35]} 49. Qf4 {[%emt 0:00:39]} Qe1
{[%emt 0:00:37]} 50. Be2 {[%emt 0:01:38]} h4 {[%emt 0:00:05]} 51. Bh5 {[%emt 0:
00:17]} 1-0

[Event "FIDE Womens Grand Swiss 2021"]
[Site "Riga"]
[Date "2021.11.05"]
[Round "9.20"]
[White "Arabidze, Meri"]
[Black "Divya Deshmukh"]
[Result "1-0"]
[ECO "E01"]
[WhiteElo "2441"]
[BlackElo "2305"]
[Annotator "NA"]
[PlyCount "81"]
[EventDate "2021.10.27"]
[EventType "swiss"]
[EventCountry "LAT"]
[Tiebreak "Cut1 Buchholz+Sonneborn-Berger (Swiss)"]
[SourceTitle "playchess.com"]
[Source "ChessBase"]
[SourceQuality "1"]
[TimeControl "40/6000+30:20/3000+30:900+30"]

1. d4 {[%emt 0:10:03]} d5 {[%emt 0:10:03]} 2. c4 {[%emt 0:00:15]} e6 {[%emt 0:
00:03]} 3. Nc3 {[%emt 0:01:14]} c6 {[%emt 0:00:03]} 4. g3 {[%emt 0:02:13]} Nf6
{[%emt 0:00:06]} 5. Bg2 {[%emt 0:00:18]} dxc4 {[%emt 0:03:16]} 6. Nf3 {[%emt 0:
01:12]} Nbd7 {[%emt 0:05:00]} 7. a4 {[%emt 0:04:08]} Bb4 {[%emt 0:00:33]} 8.
O-O {[%emt 0:00:38]} O-O {[%emt 0:02:17]} 9. Qc2 {[%emt 0:02:25]} Qe7 {[%emt 0:
04:31]} 10. Na2 {[%emt 0:18:59]} Bd6 {[%emt 0:06:30]} 11. Qxc4 {[%emt 0:00:44]}
e5 {[%emt 0:00:05]} 12. e4 {[%emt 0:02:25]} a6 {[%emt 0:13:50]} 13. a5 {
[%emt 0:10:08]} exd4 {[%emt 0:12:17]} 14. Nxd4 {[%emt 0:00:10]} Ne5 {[%emt 0:
00:17]} 15. Qc2 {[%emt 0:05:17]} Rd8 {[%emt 0:01:11]} 16. Nc3 {[%emt 0:02:29]}
Bc7 {[%emt 0:08:13]} 17. Nce2 {[%emt 0:06:12]} c5 {[%emt 0:16:37]} 18. Nf5 {
[%emt 0:00:37]} Bxf5 {[%emt 0:00:36]} 19. exf5 {[%emt 0:00:03]} Nd5 {[%emt 0:
06:02]} 20. Nc3 {[%emt 0:02:18]} Nb4 {[%emt 0:05:04]} 21. Qe2 {[%emt 0:00:19]}
Rab8 {[%emt 0:03:19]} 22. Ne4 {[%emt 0:09:19]} f6 {[%emt 0:00:56]} 23. Be3 {
[%emt 0:00:24]} b6 {[%emt 0:05:06]} 24. Rfd1 {[%emt 0:09:08]} Kh8 {[%emt 0:02:
04]} 25. axb6 {[%emt 0:03:33]} Bxb6 {[%emt 0:00:59]} 26. b3 {[%emt 0:00:18]}
Nec6 {[%emt 0:02:01]} 27. Qc4 {[%emt 0:06:40]} Nd4 {[%emt 0:01:13]} 28. Bf4 {
[%emt 0:01:36]} Rbc8 {[%emt 0:00:21]} 29. g4 {[%emt 0:01:21]} h6 {[%emt 0:01:
39]} 30. Rac1 {[%emt 0:01:44]} Nb5 {[%emt 0:00:40]} 31. Be3 {[%emt 0:03:26]}
Na3 {[%emt 0:00:34]} 32. Qe6 {[%emt 0:00:49]} Qa7 {[%emt 0:00:31]} 33. Nxf6 {
[%emt 0:01:23]} Nac2 {[%emt 0:00:29]} 34. Nd7 {[%emt 0:01:58]} Nxe3 {[%emt 0:
00:31]} 35. fxe3 {[%emt 0:00:23]} Nc6 {[%emt 0:00:32]} 36. Bxc6 {[%emt 0:01:51]
} Re8 {[%emt 0:00:27]} 37. Qg6 {[%emt 0:02:09]} c4 {[%emt 0:00:01]} 38. f6 {
[%emt 0:00:18]} Bxe3+ {[%emt 0:00:15]} 39. Kh1 {[%emt 0:00:11]} gxf6 {[%emt 0:
00:51]} 40. Qxf6+ {[%emt 0:00:12]} Kh7 {[%emt 0:00:04]} 41. Rxc4 {[%emt 0:23:
35]} 1-0

[Event "FIDE Womens Grand Swiss 2021"]
[Site "Riga"]
[Date "2021.11.05"]
[Round "9.21"]
[White "Milliet, Sophie"]
[Black "Arakhamia-Grant, Ketevan"]
[Result "1-0"]
[ECO "E08"]
[WhiteElo "2410"]
[BlackElo "2376"]
[Annotator "NA"]
[PlyCount "100"]
[EventDate "2021.10.27"]
[EventType "swiss"]
[EventCountry "LAT"]
[Tiebreak "Cut1 Buchholz+Sonneborn-Berger (Swiss)"]
[SourceTitle "playchess.com"]
[Source "ChessBase"]
[SourceQuality "1"]
[TimeControl "40/6000+30:20/3000+30:900+30"]

1. d4 {[%emt 0:10:03]} Nf6 {[%emt 0:11:57]} 2. c4 {[%emt 0:00:05]} e6 {[%emt 0:
04:07]} 3. Nf3 {[%emt 0:00:16]} d5 {[%emt 0:00:21]} 4. g3 {[%emt 0:00:30]} Be7
{[%emt 0:03:44]} 5. Bg2 {[%emt 0:00:10]} O-O {[%emt 0:00:07]} 6. O-O {[%emt 0:
00:04]} Nbd7 {[%emt 0:01:09]} 7. Qc2 {[%emt 0:04:10]} Ne4 {[%emt 0:07:48]} 8.
Nc3 {[%emt 0:04:11]} Nxc3 {[%emt 0:07:06]} 9. bxc3 {[%emt 0:01:39]} Nb6 {
[%emt 0:10:10]} 10. c5 {[%emt 0:10:28]} Nc4 {[%emt 0:00:31]} 11. Nd2 {[%emt 0:
01:41]} Nxd2 {[%emt 0:04:15]} 12. Bxd2 {[%emt 0:00:03]} b6 {[%emt 0:00:32]} 13.
c4 {[%emt 0:03:17]} Ba6 {[%emt 0:04:48]} 14. cxd5 {[%emt 0:02:36]} exd5 {
[%emt 0:00:11]} 15. Bf4 {[%emt 0:05:13]} Bc4 {[%emt 0:10:00]} 16. Rfd1 {
[%emt 0:00:56]} g5 {[%emt 0:18:29]} 17. Bc1 {[%emt 0:08:32]} f5 {[%emt 0:00:58]
} 18. e4 {[%emt 0:11:24]} f4 {[%emt 0:01:54]} 19. Re1 {[%emt 0:06:29]} f3 {
[%emt 0:05:14]} 20. Bh3 {[%emt 0:00:38]} Kh8 {[%emt 0:00:32]} 21. Bb2 {[%emt 0:
01:55]} c6 {[%emt 0:02:50]} 22. Re3 {[%emt 0:04:17]} Rf7 {[%emt 0:01:04]} 23.
Rae1 {[%emt 0:01:20]} b5 {[%emt 0:01:09]} 24. Be6 {[%emt 0:03:13]} Rf6 {
[%emt 0:01:21]} 25. exd5 {[%emt 0:00:31]} cxd5 {[%emt 0:00:39]} 26. Bxd5 {
[%emt 0:10:40]} Bxd5 {[%emt 0:00:49]} 27. Rxe7 {[%emt 0:00:04]} Qg8 {[%emt 0:
03:20]} 28. Rd7 {[%emt 0:06:12]} Rd8 {[%emt 0:00:38]} 29. Ree7 {[%emt 0:01:52]}
Rxd7 {[%emt 0:01:11]} 30. Rxd7 {[%emt 0:00:04]} Re6 {[%emt 0:01:05]} 31. h3 {
[%emt 0:06:53]} Re1+ {[%emt 0:03:07]} 32. Kh2 {[%emt 0:00:01]} Re2 {[%emt 0:00:
17]} 33. Qf5 {[%emt 0:00:16]} Qg6 {[%emt 0:00:58]} 34. Qxg6 {[%emt 0:03:34]}
Rxf2+ {[%emt 0:00:34]} 35. Kg1 {[%emt 0:03:14]} Rg2+ {[%emt 0:00:06]} 36. Kh1 {
[%emt 0:00:32]} hxg6 {[%emt 0:00:08]} 37. Rxd5 {[%emt 0:00:27]} Rxb2 {[%emt 0:
00:05]} 38. Kg1 {[%emt 0:00:33]} Rc2 {[%emt 0:01:19]} 39. Rd6 {[%emt 0:00:21]}
Rxa2 {[%emt 0:03:56]} 40. c6 {[%emt 0:00:59]} Rc2 {[%emt 0:00:43]} 41. d5 {
[%emt 0:50:49]} Kg7 {[%emt 0:30:33]} 42. Rd7+ {[%emt 0:00:00]} Kf6 {[%emt 0:00:
58]} 43. c7 {[%emt 0:00:00]} Ke5 {[%emt 0:03:37]} 44. d6 {[%emt 0:00:00]} a5 {
[%emt 0:04:45]} 45. Rd8 {[%emt 0:00:00]} Ke6 {[%emt 0:03:30]} 46. c8=Q+ {
[%emt 0:00:00]} Rxc8 {[%emt 0:00:06]} 47. Rxc8 {[%emt 0:00:00]} Kxd6 {[%emt 0:
00:17]} 48. Kf2 {[%emt 0:00:00]} a4 {[%emt 0:00:10]} 49. Kxf3 {[%emt 0:00:00]}
Kd5 {[%emt 0:04:31]} 50. Ke3 {[%emt 0:00:00]} b4 {[%emt 0:00:56]} 1-0

[Event "FIDE Womens Grand Swiss 2021"]
[Site "Riga"]
[Date "2021.11.05"]
[Round "9.22"]
[White "Houska, Jovanka"]
[Black "Lujan, Carolina"]
[Result "1-0"]
[ECO "D77"]
[WhiteElo "2381"]
[BlackElo "2340"]
[Annotator "NA"]
[PlyCount "57"]
[EventDate "2021.10.27"]
[EventType "swiss"]
[EventCountry "LAT"]
[Tiebreak "Cut1 Buchholz+Sonneborn-Berger (Swiss)"]
[SourceTitle "playchess.com"]
[Source "ChessBase"]
[SourceQuality "1"]
[TimeControl "40/6000+30:20/3000+30:900+30"]

1. d4 {[%emt 0:10:04]} Nf6 {[%emt 0:10:13]} 2. Nf3 {[%emt 0:00:05]} g6 {
[%emt 0:00:17]} 3. g3 {[%emt 0:00:12]} Bg7 {[%emt 0:00:18]} 4. Bg2 {[%emt 0:00:
04]} d5 {[%emt 0:01:09]} 5. O-O {[%emt 0:01:20]} O-O {[%emt 0:00:12]} 6. c4 {
[%emt 0:00:16]} dxc4 {[%emt 0:00:40]} 7. Na3 {[%emt 0:00:05]} c3 {[%emt 0:00:
08]} 8. bxc3 {[%emt 0:00:10]} c5 {[%emt 0:00:11]} 9. e3 {[%emt 0:00:24]} Nc6 {
[%emt 0:01:03]} 10. Qe2 {[%emt 0:00:48]} Bf5 {[%emt 0:01:41]} 11. Rd1 {[%emt 0:
02:51]} Qb6 {[%emt 0:06:20]} 12. Nd2 {[%emt 0:02:07]} Bg4 {[%emt 0:17:11]} 13.
f3 {[%emt 0:04:30]} Be6 {[%emt 0:02:54]} 14. Rb1 {[%emt 0:10:28]} Qc7 {[%emt 0:
06:13]} 15. Nb3 {[%emt 0:00:59]} b6 {[%emt 0:10:20]} 16. e4 {[%emt 0:07:18]}
Bxb3 {[%emt 0:07:41]} 17. axb3 {[%emt 0:00:04]} cxd4 {[%emt 0:01:24]} 18. cxd4
{[%emt 0:01:40]} e5 {[%emt 0:09:05]} 19. Nb5 {[%emt 0:04:01]} Qc8 {[%emt 0:12:
52]} 20. dxe5 {[%emt 0:10:03]} Nxe5 {[%emt 0:02:07]} 21. Ba3 {[%emt 0:00:12]}
Rd8 {[%emt 0:01:44]} 22. Rxd8+ {[%emt 0:07:31]} Qxd8 {[%emt 0:00:04]} 23. f4 {
[%emt 0:00:04]} Nc6 {[%emt 0:07:05]} 24. Rd1 {[%emt 0:06:54]} Qc8 {[%emt 0:11:
04]} 25. e5 {[%emt 0:00:25]} a6 {[%emt 0:00:32]} 26. Nd6 {[%emt 0:02:53]} Qc7 {
[%emt 0:00:24]} 27. exf6 {[%emt 0:00:34]} Bxf6 {[%emt 0:00:18]} 28. Qe4 {
[%emt 0:06:10]} Rd8 {[%emt 0:00:48]} 29. Qxc6 {[%emt 0:00:09]} 1-0